fUST/lending_fUST_20260107
["ID","MTS","AMOUNT","RATE_DAILY","PERIOD"]
[400614387,1767744642717,-8267.0,0.00018493,2]
[400614388,1767744642726,-8267.0,0.0001863,2]
[400614390,1767744642736,-1374.16008219,0.00018683,9]
[400614391,1767744642746,-240.0,0.00018712,3]
[400614392,1767744642756,-1152.0,0.0001875,2]
[400614393,1767744642768,-8267.0,0.00018767,2]
[400614394,1767744642777,-4667.85314935,0.00018852,2]
[400614395,1767744642898,-8267.0,0.00018904,2]
[400614396,1767744642909,-8267.0,0.00019041,2]
[400614397,1767744642918,-8267.0,0.00019178,2]
[400614398,1767744642929,-900.0,0.00019178,2]
[400614399,1767744642938,-249.6,0.00019288,2]
[400614400,1767744642947,-8267.0,0.00019315,2]
[400614401,1767744642956,-1000.0,0.00019362,2]
[400614402,1767744642966,-244.0,0.00019362,2]
[400614403,1767744642975,-8267.0,0.00019452,2]
[400614404,1767744642984,-8267.0,0.00019589,2]
[400614405,1767744642993,-8267.0,0.00019726,2]
[400614406,1767744643002,-648.93473211,0.00019726,2]
[400614407,1767744643011,-7142.75350321,0.0001986,2]
[400614408,1767744643019,-8267.0,0.00019863,2]
[400614409,1767744643028,-8267.0,0.0002,2]
[400614410,1767744643038,-167.75,0.0002,2]
[400614411,1767744643047,-224.01,0.0002,2]
[400614412,1767744643056,-181.04000005,0.0002,2]
[400614413,1767744643066,-210.16908342,0.0002,2]
[400614414,1767744643075,-1678.29734239,0.00020113,12]
[400614415,1767744643084,-8267.0,0.00020137,2]
[400614416,1767744643094,-8267.0,0.00020274,2]
[400614417,1767744643103,-8711.61731483,0.000203,2]
[400614418,1767744643113,-258.0,0.00020313,2]
[400614419,1767744643123,-20218.78,0.000204,2]
[400614420,1767744643132,-240.34,0.000204,2]
[400614421,1767744643141,-217.46,0.000204,2]
[400614422,1767744643151,-2322.0,0.000204,2]
[400614423,1767744643162,-8288.44807479,0.00020411,2]
[400614424,1767744643172,-711.0,0.00020564,2]
[400614425,1767744643182,-249.6,0.0002094,2]
[400614426,1767744643191,-3000.0,0.00021,2]
[400614427,1767744643205,-3000.0,0.0002101,2]
[400614428,1767744643214,-3000.0,0.0002102,2]
[400614429,1767744643224,-3000.0,0.0002103,2]
[400614430,1767744643235,-5210.402483,0.0002104,2]
[400614431,1767744643244,-1000.0,0.00021298,10]
[400614432,1767744643254,-492.0,0.00021298,10]
[400614433,1767744643263,-191.0,0.00021452,4]
[400614434,1767744643272,-1993.68715957,0.00021544,14]
[400614435,1767744643281,-4667.85314935,0.00021778,2]
[400614436,1767744643291,-195.05,0.00021954,2]
[400614437,1767744643300,-2362.32,0.00022,7]
[400614438,1767744643309,-568.27,0.00022,2]
[400614439,1767744643319,-8711.6173148,0.00022189,2]
[400614440,1767744643329,-285.0,0.00022313,2]
[400614441,1767744643339,-300.0,0.00022466,2]
[400614442,1767744643348,-249.6,0.00022591,2]
[400614443,1767744643358,-2319.04156519,0.00022974,17]
[400614444,1767744643368,-3901.28444421,0.00023,2]
[400614445,1767744643378,-450.0,0.00023014,2]
[400614446,1767744643388,-158.48,0.000231,2]
[400614447,1767744643399,-2300.0,0.00023146,2]
[400614448,1767744643408,-500.0,0.00023212,2]
[400614449,1767744643419,-500.0,0.00023255,2]
[400614450,1767744643428,-2300.0,0.00023278,2]
[400614451,1767744643438,-500.0,0.00023356,2]
[400614452,1767744643448,-7142.75350321,0.00023359,2]
[400614453,1767744643458,-500.0,0.00023397,2]
[400614454,1767744643470,-2300.0,0.0002342,2]
[400614455,1767744643479,-2300.0,0.00023428,2]
[400614456,1767744643489,-1000.0,0.00023428,10]
[400614457,1767744643499,-791.0,0.00023428,10]
[400614458,1767744643509,-2300.0,0.00023508,2]
[400614459,1767744643519,-600.0,0.00023562,2]
[400614460,1767744643529,-2000.0,0.00023583,7]
[400614461,1767744643538,-2300.0,0.00023606,2]
[400614462,1767744643548,-500.0,0.00023764,2]
[400614463,1767744643557,-868.0,0.00023827,2]
[400614464,1767744643567,-500.0,0.00023876,2]
[400614465,1767744643576,-10000.0,0.00024,2]
[400614466,1767744643586,-1025.73276343,0.00024,2]
[400614467,1767744643595,-868.0,0.00024002,2]
[400614468,1767744643605,-500.0,0.00024054,2]
[400614469,1767744643615,-2300.0,0.0002407,2]
[400614470,1767744643624,-8711.6173148,0.00024078,2]
[400614471,1767744643634,-500.0,0.00024106,2]
[400614472,1767744643643,-750.0,0.0002411,2]
[400614473,1767744643653,-2300.0,0.00024142,2]
[400614474,1767744643663,-2300.0,0.00024187,2]
[400614475,1767744643674,-156.0,0.00024192,12]
[400614476,1767744643684,-249.6,0.00024243,2]
[400614477,1767744643693,-2300.0,0.00024273,2]
[400614478,1767744643704,-2300.0,0.00024309,2]
[400614479,1767744643714,-312.0,0.00024313,2]
[400614480,1767744643724,-868.0,0.00024351,2]
[400614481,1767744643734,-2000.0,0.00024404,7]
[400614482,1767744643744,-2653.36637253,0.00024405,20]
[400614483,1767744643754,-2300.0,0.00024497,2]
[400614484,1767744643763,-195.05,0.00024547,2]
[400614485,1767744643773,-500.0,0.00024619,2]
[400614486,1767744643782,-900.0,0.00024658,2]
[400614487,1767744643792,-500.0,0.00024658,2]
[400614488,1767744643801,-4667.85314935,0.00024704,2]
[400614489,1767744643811,-587.58501506,0.00024719,2]
[400614490,1767744643821,-500.0,0.00024795,2]
[400614491,1767744643831,-867.0,0.00024804,2]
[400614492,1767744643840,-500.0,0.00024853,2]
[400614493,1767744643850,-868.0,0.00024877,2]
[400614494,1767744643859,-867.0,0.00024895,2]
[400614495,1767744643868,-631081.21536,0.000249,2]
[400614496,1767744643878,-500.0,0.00024932,2]
[400614497,1767744643888,-500.0,0.00024998,2]
[400614498,1767744643897,-568.27,0.00025,2]
[400614499,1767744643907,-1018.0,0.00025,2]
[400614500,1767744643916,-868.0,0.00025055,2]
[400614501,1767744643925,-500.0,0.00025069,2]
[400614502,1767744643935,-867.0,0.00025092,2]
[400614503,1767744643944,-867.0,0.00025127,2]
[400614504,1767744643954,-250.0,0.00025205,2]
[400614505,1767744643963,-880.39814706,0.00025205,2]
[400614506,1767744643973,-500.0,0.00025206,2]
[400614507,1767744643983,-2000.0,0.00025225,7]
[400614508,1767744643992,-867.0,0.00025261,7]
[400614509,1767744644001,-500.0,0.00025343,2]
[400614510,1767744644011,-868.0,0.00025431,2]
[400614511,1767744644020,-500.0,0.0002548,2]
[400614512,1767744644029,-868.0,0.00025542,2]
[400614513,1767744644039,-2300.0,0.00025547,7]
[400614514,1767744644048,-867.0,0.00025553,2]
[400614515,1767744644058,-500.0,0.00025569,7]
[400614516,1767744644068,-500.0,0.00025617,2]
[400614517,1767744644077,-867.0,0.00025648,7]
[400614518,1767744644086,-2300.0,0.00025707,7]
[400614519,1767744644095,-2300.0,0.00025711,7]
[400614520,1767744644105,-867.0,0.00025712,2]
[400614521,1767744644114,-867.0,0.0002575,2]
[400614522,1767744644123,-350.0,0.00025753,2]
[400614523,1767744644137,-500.0,0.00025754,2]
[400614524,1767744644150,-500.0,0.00025756,7]
[400614525,1767744644161,-1000.0,0.00025771,10]
[400614526,1767744644170,-1000.0,0.00025771,10]
[400614527,1767744644179,-500.0,0.0002582,7]
[400614528,1767744644188,-2995.86822414,0.00025835,22]
[400614529,1767744644198,-504.0,0.00025891,2]
[400614530,1767744644207,-249.6,0.00025895,2]
[400614531,1767744644217,-2300.0,0.00025939,7]
[400614532,1767744644226,-8711.6173148,0.00025968,2]
[400614533,1767744644238,-1041.66666667,0.00026,7]
[400614534,1767744644248,-1018.0,0.00026,2]
[400614535,1767744644258,-867.0,0.00026022,2]
[400614536,1767744644268,-2000.0,0.00026046,7]
[400614537,1767744644278,-2300.0,0.00026276,7]
[400614538,1767744644287,-450.0,0.00026301,2]
[400614539,1767744644298,-339.0,0.00026313,2]
[400614540,1767744644307,-867.0,0.00026357,2]
[400614541,1767744644317,-174.0,0.00026384,20]
[400614542,1767744644326,-20218.78,0.000264,2]
[400614543,1767744644336,-240.34,0.000264,7]
[400614544,1767744644347,-217.46,0.000264,7]
[400614545,1767744644356,-2322.0,0.000264,14]
[400614546,1767744644365,-2362.32,0.000264,7]
[400614547,1767744644375,-867.0,0.00026406,2]
[400614548,1767744644384,-568.27,0.000265,2]
[400614550,1767744644397,-2300.0,0.00026508,7]
[400614552,1767744644407,-283.31451866,0.00026621,2]
[400614553,1767744644417,-1133.25807464,0.00026621,2]
[400614554,1767744644427,-2549.83066793,0.00026621,2]
[400614555,1767744644438,-4533.03229854,0.00026621,2]
[400614556,1767744644447,-7082.86296647,0.00026621,2]
[400614557,1767744644457,-10199.32267172,0.00026621,2]
[400614558,1767744644467,-230.26115716,0.00026621,2]
[400614559,1767744644478,-920.12358403,0.00026621,2]
[400614560,1767744644487,-2300.0,0.00026671,7]
[400614561,1767744644496,-867.0,0.00026674,7]
[400614562,1767744644506,-2300.0,0.00026708,7]
[400614563,1767744644515,-500.0,0.00026757,7]
[400614564,1767744644524,-867.0,0.00026781,2]
[400614565,1767744644534,-550.0,0.00026849,2]
[400614566,1767744644554,-500.0,0.00026857,7]
[400614567,1767744644564,-7142.75350321,0.00026858,2]
[400614568,1767744644575,-2000.0,0.00026867,7]
[400614569,1767744644585,-184.0,0.00027,7]
[400614570,1767744644595,-1018.0,0.00027,2]
[400614571,1767744644605,-867.0,0.00027008,2]
[400614572,1767744644615,-500.0,0.00027012,7]
[400614573,1767744644625,-188.11386458,0.00027036,2]
[400614574,1767744644635,-867.0,0.00027113,2]
[400614575,1767744644645,-2300.0,0.00027156,7]
[400614576,1767744644655,-3345.8976051,0.00027265,25]
[400614577,1767744644664,-867.0,0.00027302,2]
[400614578,1767744644674,-867.0,0.00027367,2]
[400614579,1767744644684,-223.81332617,0.00027397,2]
[400614580,1767744644694,-156.66932831,0.00027397,2]
[400614581,1767744644704,-1603.97,0.00027397,2]
[400614582,1767744644713,-650.0,0.00027397,5]
[400614583,1767744644723,-500.0,0.00027397,5]
[400614584,1767744644733,-2300.0,0.00027424,7]
[400614585,1767744644742,-2300.0,0.0002744,7]
[400614586,1767744644752,-249.6,0.00027546,2]
[400614587,1767744644762,-500.0,0.00027555,7]
[400614588,1767744644772,-500.0,0.00027687,7]
[400614589,1767744644783,-2000.0,0.00027688,7]
[400614590,1767744644792,-8711.6173148,0.00027857,2]
[400614591,1767744644802,-1000.0,0.00027945,5]
[400614592,1767744644812,-750.0,0.00027945,5]
[400614593,1767744644821,-250.0,0.00027945,5]
[400614594,1767744644831,-250.0,0.00027945,5]
[400614595,1767744644842,-1018.0,0.00028,2]
[400614596,1767744644851,-1041.66666667,0.00028,7]
[400614597,1767744644861,-279.35774616,0.00028072,7]
[400614598,1767744644871,-2300.0,0.00028087,7]
[400614599,1767744644881,-2300.0,0.00028155,7]
[400614600,1767744644890,-2300.0,0.00028163,7]
[400614601,1767744644900,-417.0,0.00028309,2]
[400614602,1767744644910,-714.0,0.00028309,2]
[400614603,1767744644920,-194.752,0.00028309,2]
[400614604,1767744644930,-366.0,0.00028313,2]
[400614605,1767744644945,-1000.0,0.00028348,30]
[400614606,1767744644964,-1000.0,0.00028348,30]
[400614607,1767744644974,-579.0,0.00028348,30]
[400614608,1767744644985,-850.0,0.00028493,5]
[400614609,1767744644995,-1344.52633851,0.00028493,5]
[400614610,1767744645009,-350.0,0.00028493,5]
[400614611,1767744645032,-350.0,0.00028493,5]
[400614612,1767744645045,-568.27,0.000285,2]
[400614613,1767744645058,-2000.0,0.00028508,7]
[400614614,1767744645067,-157.0,0.00028575,30]
[400614615,1767744645077,-2300.0,0.00028637,7]
[400614616,1767744645087,-3702.91183484,0.00028696,28]
[400614617,1767744645097,-1603.97,0.00028767,4]
[400614618,1767744645107,-500.0,0.00028865,7]
[400614619,1767744645117,-500.0,0.00028887,7]
[400614620,1767744645127,-1018.0,0.00029,2]
[400614621,1767744645141,-950.0,0.00029041,5]
[400614622,1767744645151,-450.0,0.00029041,5]
[400614623,1767744645161,-450.0,0.00029041,5]
[400614624,1767744645171,-2362.32,0.000291,7]
[400614625,1767744645181,-2300.0,0.00029102,7]
[400614626,1767744645194,-249.6,0.00029198,3]
[400614627,1767744645206,-995.3526357,0.00029311,7]
[400614628,1767744645217,-2000.0,0.00029329,7]
[400614629,1767744645227,-157.17127242,0.00029363,5]
[400614630,1767744645238,-3045.5676701,0.00029441,7]
[400614631,1767744645249,-1050.0,0.00029589,5]
[400614632,1767744645261,-550.0,0.00029589,5]
[400614633,1767744645271,-550.0,0.00029589,5]
[400614634,1767744645281,-8711.6173148,0.00029746,2]
[400614635,1767744645290,-250.041,0.00029836,2]
[400614636,1767744645301,-270.216,0.00029836,2]
[400614637,1767744645311,-150.448,0.00029836,2]
[400614638,1767744645323,-151.389,0.00029836,2]
[400614639,1767744645335,-250.0,0.00029836,2]
[400614640,1767744645346,-267.158,0.00029836,2]
[400614641,1767744645356,-2145.0,0.00029836,2]
[400614642,1767744645366,-1365.0,0.00029836,2]
[400614643,1767744645378,-20218.78,0.000299,2]
[400614644,1767744645390,-10000.0,0.0003,2]
[400614645,1767744645402,-1018.0,0.0003,7]
[400614646,1767744645411,-2874.83428113,0.000301,7]
[400614647,1767744645422,-2000.0,0.00030118,10]
[400614648,1767744645435,-4066.44992221,0.00030126,30]
[400614649,1767744645445,-2000.0,0.00030127,10]
[400614650,1767744645455,-2000.0,0.00030136,10]
[400614651,1767744645466,-2000.0,0.00030136,10]
[400614652,1767744645479,-1603.97,0.00030136,6]
[400614653,1767744645489,-1150.0,0.00030137,5]
[400614654,1767744645500,-650.0,0.00030137,5]
[400614655,1767744645510,-650.0,0.00030137,5]
[400614656,1767744645520,-2000.0,0.0003015,7]
[400614657,1767744645532,-157.17127242,0.00030271,10]
[400614658,1767744645542,-393.0,0.00030313,2]
[400614659,1767744645552,-7142.75350321,0.00030357,2]
[400614660,1767744645562,-1297.73266776,0.00030685,5]
[400614661,1767744645572,-750.0,0.00030685,5]
[400614662,1767744645582,-750.0,0.00030685,5]
[400614663,1767744645592,-240.34,0.000307,7]
[400614664,1767744645602,-217.46,0.000307,7]
[400614665,1767744645612,-2322.0,0.000307,14]
[400614666,1767744645621,-300.0,0.0003074,2]
[400614667,1767744645632,-169.0,0.00030767,42]
[400614668,1767744645641,-249.6,0.00030849,4]
[400614669,1767744645651,-689.26,0.00030958,30]
[400614670,1767744645662,-2000.0,0.00030971,7]
[400614671,1767744645672,-193.11075698,0.00031,120]
[400614672,1767744645682,-188.78673029,0.00031,120]
[400614673,1767744645692,-172.60461299,0.00031,120]
[400614674,1767744645702,-163.4725449,0.00031,120]
[400614675,1767744645712,-198.36643638,0.00031,120]
[400614676,1767744645728,-163.65081324,0.00031,120]
[400614677,1767744645737,-185.65429275,0.00031,120]
[400614678,1767744645747,-194.20318295,0.00031,120]
[400614679,1767744645758,-721.64697953,0.00031,120]
[400614680,1767744645768,-172.33135591,0.00031,120]
[400614681,1767744645782,-2362.32,0.00031,7]
[400614682,1767744645791,-1041.66666667,0.00031,10]
[400614683,1767744645802,-1018.0,0.00031,7]
[400614684,1767744645812,-1000.0,0.00031183,30]
[400614685,1767744645822,-1000.0,0.00031183,30]
[400614686,1767744645832,-320.0,0.00031183,30]
[400614687,1767744645846,-850.0,0.00031233,5]
[400614688,1767744645856,-417.0,0.00031309,2]
[400614689,1767744645866,-714.0,0.00031309,2]
[400614690,1767744645876,-178.0,0.00031309,2]
[400614691,1767744645886,-689.26,0.00031506,31]
[400614692,1767744645896,-1603.97,0.00031506,8]
[400614693,1767744645907,-4436.11484644,0.00031557,32]
[400614694,1767744645917,-8711.6173148,0.00031635,2]
[400614695,1767744645927,-950.0,0.00031781,5]
[400614697,1767744645938,-2000.0,0.00031792,7]
[400614702,1767744646096,-193.11075698,0.000319,120]
[400614703,1767744646108,-163.4725449,0.000319,120]
[400614704,1767744646117,-198.36643638,0.000319,120]
[400614705,1767744646127,-163.65081324,0.000319,120]
[400614706,1767744646136,-185.65429275,0.000319,120]
[400614707,1767744646145,-194.20318295,0.000319,120]
[400614708,1767744646154,-721.64697953,0.000319,120]
[400614709,1767744646164,-172.33135591,0.000319,120]
[400614710,1767744646173,-666.0,0.0003203,30]
[400614711,1767744646182,-493.0,0.0003203,30]
[400614712,1767744646192,-1015.0,0.0003203,30]
[400614713,1767744646201,-689.26,0.00032054,32]
[400614714,1767744646211,-20218.78,0.000323,2]
[400614715,1767744646220,-250.0,0.000323,7]
[400614716,1767744646229,-250.0,0.000323,7]
[400614717,1767744646238,-250.0,0.000323,7]
[400614718,1767744646249,-250.0,0.000323,7]
[400614720,1767744646259,-206.8,0.000323,7]
[400614721,1767744646269,-420.0,0.00032313,2]
[400614722,1767744646278,-1050.0,0.00032329,5]
[400614723,1767744646288,-568.27,0.000324,2]
[400614724,1767744646299,-1000.0,0.000324,120]
[400614725,1767744646310,-249.6,0.00032501,5]
[400614726,1767744646320,-689.26,0.00032602,33]
[400614727,1767744646331,-2000.0,0.00032613,7]
[400614728,1767744646341,-15905.50371464,0.000327,8]
[400614729,1767744646352,-2145.0,0.00032836,2]
[400614730,1767744646363,-1365.0,0.00032836,2]
[400614731,1767744646373,-38000.0,0.00032842,10]
[400614732,1767744646384,-38000.0,0.00032851,10]
[400614733,1767744646401,-181.138598,0.00032859,31]
[400614734,1767744646414,-151.0,0.00032859,31]
[400614735,1767744646424,-151.0,0.00032859,31]
[400614736,1767744646436,-151.0,0.00032859,31]
[400614737,1767744646445,-251.46189,0.00032859,31]
[400614738,1767744646455,-245.598663,0.00032859,31]
[400614739,1767744646465,-245.598663,0.00032859,31]
[400614740,1767744646475,-245.598663,0.00032859,31]
[400614741,1767744646484,-245.598663,0.00032859,31]
[400614742,1767744646494,-251.132582,0.00032859,31]
[400614743,1767744646514,-251.132582,0.00032859,31]
[400614744,1767744646524,-251.132582,0.00032859,31]
[400614745,1767744646534,-251.132582,0.00032859,31]
[400614746,1767744646544,-151.0,0.00032859,31]
[400614747,1767744646554,-151.0,0.00032859,31]
[400614748,1767744646564,-151.0,0.00032859,31]
[400614749,1767744646574,-151.0,0.00032859,31]
[400614750,1767744646584,-151.0,0.00032859,31]
[400614751,1767744646594,-151.0,0.00032859,31]
[400614752,1767744646604,-151.0,0.00032859,31]
[400614753,1767744646614,-254.925967,0.00032859,31]
[400614754,1767744646623,-225.687069,0.00032859,31]
[400614755,1767744646633,-225.687069,0.00032859,31]
[400614756,1767744646643,-225.687069,0.00032859,31]
[400614757,1767744646653,-225.687069,0.00032859,31]
[400614758,1767744646665,-235.440161,0.00032859,31]
[400614759,1767744646675,-151.0,0.00032859,31]
[400614760,1767744646685,-151.0,0.00032859,31]
[400614761,1767744646696,-153.720433,0.00032859,30]
[400614762,1767744646706,-153.743312,0.00032859,31]
[400614763,1767744646716,-153.772571,0.00032859,31]
[400614764,1767744646726,-189.018412,0.00032859,31]
[400614765,1767744646736,-189.018412,0.00032859,31]
[400614766,1767744646746,-4000.0,0.00032859,31]
[400614767,1767744646756,-189.018412,0.00032859,31]
[400614768,1767744646766,-4000.0,0.00032859,31]
[400614769,1767744646776,-189.018412,0.00032859,31]
[400614770,1767744646786,-4000.0,0.00032859,31]
[400614771,1767744646795,-4000.0,0.00032859,31]
[400614772,1767744646805,-349.869649,0.00032859,28]
[400614773,1767744646815,-349.869649,0.00032859,28]
[400614774,1767744646824,-349.869649,0.00032859,28]
[400614775,1767744646835,-349.869649,0.00032859,28]
[400614776,1767744646847,-151.0,0.00032859,31]
[400614777,1767744646857,-38000.0,0.00032859,10]
[400614778,1767744646867,-38000.0,0.00032868,10]
[400614779,1767744646877,-1603.97,0.00032876,120]
[400614780,1767744646888,-41914.96,0.00032877,10]
[400614781,1767744646898,-73174.77,0.00032877,10]
[400614782,1767744646908,-60978.98,0.00032877,10]
[400614783,1767744646919,-38000.0,0.00032877,10]
[400614784,1767744646929,-18798.88741347,0.00032877,10]
[400614785,1767744646940,-163.4725449,0.000329,120]
[400614786,1767744646949,-198.36643638,0.000329,120]
[400614787,1767744646959,-185.65429275,0.000329,120]
[400614788,1767744646969,-721.64697953,0.000329,120]
[400614789,1767744646978,-250.0,0.000329,14]
[400614790,1767744646988,-250.0,0.000329,14]
[400614791,1767744646998,-4811.56068939,0.00032987,34]
[400614792,1767744647007,-1041.66666667,0.00033,10]
[400614793,1767744647017,-689.26,0.0003315,34]
[400614794,1767744647027,-2000.0,0.00033433,7]
[400614795,1767744647038,-983.41783036,0.00033492,2]
[400614796,1767744647047,-3929.73765012,0.00033492,2]
[400614797,1767744647057,-507.70490863,0.00033492,2]
[400614798,1767744647067,-2030.81963453,0.00033492,2]
[400614799,1767744647077,-4569.34417769,0.00033492,2]
[400614800,1767744647087,-8711.6173148,0.00033525,2]
[400614801,1767744647096,-689.26,0.00033698,35]
[400614802,1767744647106,-210.0,0.00033699,5]
[400614803,1767744647115,-240.34,0.000337,7]
[400614804,1767744647126,-217.46,0.000337,7]
[400614805,1767744647137,-2322.0,0.000337,30]
[400614806,1767744647147,-2362.32,0.000337,7]
[400614807,1767744647158,-7142.75350321,0.00033856,2]
[400614808,1767744647168,-866.6091159,0.00033897,3]
[400614809,1767744647178,-721.64697953,0.000339,120]
[400614810,1767744647188,-1041.66666667,0.00034,10]
[400614811,1767744647197,-1041.66666667,0.00034,30]
[400614812,1767744647207,-155.0,0.00034055,66]
[400614813,1767744647216,-300.0,0.00034055,2]
[400614814,1767744647226,-300.0,0.00034055,2]
[400614815,1767744647235,-300.0,0.00034055,2]
[400614816,1767744647245,-300.0,0.00034055,2]
[400614817,1767744647254,-300.0,0.00034055,2]
[400614818,1767744647264,-300.0,0.00034055,2]
[400614819,1767744647275,-300.0,0.00034055,2]
[400614820,1767744647285,-300.0,0.00034055,2]
[400614821,1767744647294,-300.0,0.00034055,2]
[400614822,1767744647304,-300.0,0.00034055,2]
[400614823,1767744647313,-300.0,0.00034055,2]
[400614824,1767744647322,-300.0,0.00034055,2]
[400614825,1767744647332,-300.0,0.00034055,2]
[400614826,1767744647342,-300.0,0.00034055,2]
[400614827,1767744647356,-300.0,0.00034055,2]
[400614828,1767744647368,-300.0,0.00034055,2]
[400614829,1767744647378,-300.0,0.00034055,2]
[400614830,1767744647390,-300.0,0.00034055,2]
[400614831,1767744647400,-300.0,0.00034055,2]
[400614832,1767744647411,-300.0,0.00034055,2]
[400614833,1767744647420,-300.0,0.00034055,2]
[400614834,1767744647431,-300.0,0.00034055,2]
[400614836,1767744647440,-300.0,0.00034055,2]
[400614837,1767744647451,-300.0,0.00034055,2]
[400614838,1767744647460,-300.0,0.00034082,2]
[400614839,1767744647471,-300.0,0.00034082,2]
[400614840,1767744647481,-300.0,0.00034082,2]
[400614841,1767744647490,-300.0,0.00034082,2]
[400614842,1767744647500,-300.0,0.00034082,2]
[400614843,1767744647510,-300.0,0.00034082,2]
[400614844,1767744647520,-300.0,0.00034082,2]
[400614845,1767744647530,-300.0,0.00034082,2]
[400614846,1767744647541,-249.6,0.00034153,6]
[400614847,1767744647550,-689.26,0.00034246,36]
[400614848,1767744647559,-1603.97,0.00034246,120]
[400614849,1767744647568,-2000.0,0.00034254,7]
[400614850,1767744647578,-417.0,0.00034309,2]
[400614851,1767744647587,-714.0,0.00034309,2]
[400614852,1767744647597,-178.0,0.00034309,2]
[400614853,1767744647606,-447.0,0.00034313,120]
[400614854,1767744647617,-5192.48305187,0.00034418,36]
[400614855,1767744647626,-270.0,0.00034521,5]
[400614856,1767744647636,-568.27,0.000346,2]
[400614857,1767744647645,-250.0,0.000346,10]
[400614858,1767744647655,-8027.89856116,0.0003465,4]
[400614859,1767744647666,-164960.83913601,0.0003465,4]
[400614860,1767744647676,-500.0,0.0003465,13]
[400614861,1767744647687,-500.0,0.0003465,13]
[400614862,1767744647697,-1520.61,0.00034664,60]
[400614863,1767744647706,-250.0,0.000347,10]
[400614864,1767744647716,-2000.0,0.00034706,15]
[400614865,1767744647726,-152.72,0.00034725,60]
[400614866,1767744647736,-173.03,0.00034725,60]
[400614867,1767744647746,-1520.61,0.00034764,60]
[400614868,1767744647756,-2271.32614822,0.00034764,60]
[400614869,1767744647766,-689.26,0.00034794,37]
[400614870,1767744647775,-250.0,0.000348,10]
[400614871,1767744647785,-152.72,0.00034825,60]
[400614872,1767744647795,-173.03,0.00034825,60]
[400614873,1767744647804,-1520.61,0.00034864,60]
[400614874,1767744647813,-721.64697953,0.000349,120]
[400614875,1767744647823,-250.0,0.000349,10]
[400614876,1767744647834,-152.72,0.00034925,60]
[400614877,1767744647844,-173.03522826,0.00034925,60]
[400614878,1767744647854,-1520.61,0.00034964,60]
[400614879,1767744647863,-869.88,0.00035,30]
[400614880,1767744647873,-1041.66666667,0.00035,120]
[400614881,1767744647882,-366.171963,0.00035,10]
[400614882,1767744647892,-1041.66666667,0.00035,7]
[400614883,1767744647902,-152.72,0.00035025,60]
[400614884,1767744647913,-1520.61,0.00035064,60]
[400614885,1767744647923,-2000.0,0.00035075,7]
[400614886,1767744647933,-20218.78,0.000351,14]
[400614887,1767744647942,-2362.32,0.000351,7]
[400614888,1767744647952,-152.72,0.00035125,60]
[400614889,1767744647961,-1520.61,0.00035164,60]
[400614890,1767744647970,-152.72,0.00035225,60]
[400614891,1767744647981,-1520.61,0.00035264,60]
[400614892,1767744647990,-152.72,0.00035325,60]
[400614893,1767744648000,-689.26,0.00035342,38]
[400614894,1767744648009,-330.0,0.00035342,5]
[400614895,1767744648018,-1520.61,0.00035364,60]
[400614896,1767744648028,-8711.6173148,0.00035414,2]